fUSD/lending_fUSD_20260322
["ID","MTS","AMOUNT","RATE_DAILY","PERIOD"]
[408700139,1774144240905,-500.0,0.00015126,2]
[408700140,1774144240915,-500.0,0.00015126,2]
[408700141,1774144240924,-500.0,0.00015126,2]
[408700142,1774144240934,-500.0,0.00015126,2]
[408700143,1774144240943,-500.0,0.00015126,2]
[408700144,1774144240953,-500.0,0.00015126,2]
[408700145,1774144240963,-500.0,0.00015126,2]
[408700146,1774144240972,-500.0,0.00015126,2]
[408700147,1774144240983,-500.0,0.00015126,2]
[408700148,1774144240992,-500.0,0.00015126,2]
[408700149,1774144241002,-500.0,0.00015126,2]
[408700150,1774144241011,-500.0,0.00015126,2]
[408700151,1774144241020,-500.0,0.00015126,2]
[408700152,1774144241030,-500.0,0.00015126,2]
[408700153,1774144241039,-500.0,0.00015126,2]
[408700154,1774144241049,-500.0,0.00015126,2]
[408700155,1774144241059,-500.0,0.00015126,2]
[408700156,1774144241068,-500.0,0.00015126,2]
[408700157,1774144241078,-500.0,0.00015126,2]
[408700158,1774144241088,-500.0,0.00015126,2]
[408700159,1774144241098,-500.0,0.00015126,2]
[408700160,1774144241107,-500.0,0.00015126,2]
[408700161,1774144241117,-500.0,0.00015126,2]
[408700162,1774144241126,-500.0,0.00015126,2]
[408700163,1774144241136,-500.0,0.00015126,2]
[408700164,1774144241145,-500.0,0.00015126,2]
[408700165,1774144241154,-500.0,0.00015126,2]
[408700166,1774144241164,-1938.0,0.00015127,2]
[408700167,1774144241173,-1326.56372234,0.00015151,2]
[408700168,1774144241183,-879.98628532,0.00015152,2]
[408700169,1774144241192,-979.16666667,0.00015179,2]
[408700170,1774144241201,-160.0,0.00015179,2]
[408700171,1774144241211,-1938.0,0.00015181,2]
[408700172,1774144241220,-219.0,0.00015209,2]
[408700173,1774144241229,-1938.0,0.00015222,2]
[408700174,1774144241239,-1326.56372226,0.00015234,2]
[408700175,1774144241248,-7618.40224976,0.00015252,2]
[408700176,1774144241258,-1938.0,0.00015264,2]
[408700177,1774144241267,-879.98628532,0.00015276,2]
[408700178,1774144241276,-1326.56372226,0.00015317,2]
[408700179,1774144241287,-1938.0,0.00015325,2]
[408700180,1774144241296,-1938.0,0.00015363,2]
[408700181,1774144241305,-250.0,0.00015373,2]
[408700182,1774144241315,-168.0,0.00015394,2]
[408700183,1774144241325,-1326.56372226,0.00015401,2]
[408700184,1774144241335,-879.98628532,0.00015401,2]
[408700185,1774144241344,-7618.40224976,0.00015414,2]
[408700186,1774144241354,-326.256965,0.00015423,7]
[408700187,1774144241365,-219.0,0.00015426,2]
[408700188,1774144241375,-1938.0,0.00015453,2]
[408700189,1774144241384,-1364.38,0.00015467,2]
[408700190,1774144241393,-413.0,0.00015467,2]
[408700191,1774144241403,-1938.0,0.00015471,2]
[408700192,1774144241412,-1326.56372226,0.00015484,2]
[408700193,1774144241421,-442.33,0.00015498,2]
[408700194,1774144241431,-442.32,0.00015498,2]
[408700195,1774144241441,-442.32,0.00015498,2]
[408700196,1774144241450,-187.425332,0.00015523,7]
[408700197,1774144241460,-160.0,0.00015523,7]
[408700198,1774144241469,-879.98628532,0.00015526,2]
[408700199,1774144241478,-308.47240642,0.00015563,2]
[408700200,1774144241488,-1326.56372226,0.00015567,2]
[408700201,1774144241497,-7618.40224976,0.00015576,2]
[408700202,1774144241506,-306.124535,0.00015582,7]
[408700203,1774144241516,-214.349544,0.00015582,7]
[408700204,1774144241525,-160.0,0.00015582,7]
[408700205,1774144241534,-2403.0,0.00015585,2]
[408700206,1774144241543,-374.89775952,0.00015586,2]
[408700207,1774144241552,-153.42631158,0.00015586,2]
[408700208,1774144241561,-168.0,0.00015609,2]
[408700209,1774144241570,-244.067469,0.00015612,7]
[408700210,1774144241579,-1326.56372226,0.0001565,2]
[408700211,1774144241588,-879.98628532,0.00015651,2]
[408700212,1774144241598,-350.0,0.00015659,2]
[408700213,1774144241610,-163.451999,0.00015683,2]
[408700214,1774144241619,-244.0,0.00015683,2]
[408700215,1774144241627,-587.0,0.00015706,2]
[408700216,1774144241636,-1326.56372226,0.00015734,2]
[408700217,1774144241647,-7618.40224976,0.00015738,2]
[408700218,1774144241656,-879.98628532,0.00015775,2]
[408700219,1774144241666,-2029.0,0.000158,2]
[408700220,1774144241675,-2351.0,0.00015803,2]
[408700221,1774144241686,-433.0,0.00015804,2]
[408700222,1774144241696,-1326.56372226,0.00015817,2]
[408700223,1774144241706,-244.501002,0.0001582,2]
[408700224,1774144241717,-1000.0,0.00015828,2]
[408700225,1774144241728,-154.38688513,0.00015831,5]
[408700226,1774144241739,-1000.0,0.00015834,2]
[408700227,1774144241751,-52077.30317571,0.0001584,2]
[408700228,1774144241760,-388.69,0.00015862,2]
[408700229,1774144241771,-173.0,0.00015863,2]
[408700230,1774144241782,-500.0,0.00015872,2]
[408700231,1774144241792,-1033.64387573,0.00015875,2]
[408700232,1774144241801,-1000.0,0.00015884,2]
[408700233,1774144241811,-685.73014729,0.000159,2]
[408700234,1774144241820,-10000.0,0.000159,2]
[408700235,1774144241829,-5000.0,0.000159,2]
[408700236,1774144241839,-7618.40224976,0.000159,2]
[408700237,1774144241849,-1326.56372226,0.000159,2]
[408700238,1774144241858,-441.23266206,0.000159,2]
[408700239,1774144241868,-879.98628532,0.000159,2]
[408700240,1774144241878,-28440.35257301,0.000159,2]
[408700241,1774144241887,-956.18235408,0.000159,2]
[408700242,1774144241910,-1568.0,0.00015905,2]
[408700243,1774144241921,-1000.0,0.00015925,2]
[408700244,1774144241930,-1000.0,0.00015929,2]
[408700245,1774144241939,-95832.8815137,0.00015931,2]
[408700246,1774144241950,-191665.7630276,0.00015931,2]
[408700247,1774144241960,-8881.0716704,0.00015931,2]
[408700248,1774144241970,-2299.0,0.00015938,5]
[408700249,1774144241982,-152.24244072,0.00015938,2]
[408700250,1774144241992,-1000.0,0.00015939,2]
[408700251,1774144242002,-2403.0,0.0001596,2]
[408700252,1774144242011,-158.12529989,0.00015972,2]
[408700253,1774144242021,-1000.0,0.00015972,2]
[408700254,1774144242031,-500.0,0.00015973,2]
[408700255,1774144242041,-500.0,0.00015973,2]
[408700256,1774144242050,-502.24763857,0.00015973,2]
[408700257,1774144242060,-501.94992362,0.00015973,2]
[408700258,1774144242070,-500.22141638,0.00015973,2]
[408700259,1774144242080,-503.65069447,0.00015973,2]
[408700260,1774144242089,-501.45694581,0.00015973,2]
[408700261,1774144242100,-500.0,0.00015973,2]
[408700262,1774144242110,-314.25079956,0.00015973,2]
[408700263,1774144242120,-500.0,0.00015973,2]
[408700264,1774144242130,-500.0,0.00015973,2]
[408700265,1774144242140,-33806.6885949,0.00015973,2]
[408700266,1774144242150,-3103.7796217,0.00015973,2]
[408700267,1774144242160,-168.0,0.00015978,2]
[408700268,1774144242170,-218.19919069,0.0001599,2]
[408700269,1774144242180,-218.19919069,0.0001599,2]
[408700270,1774144242190,-218.19919069,0.0001599,2]
[408700271,1774144242200,-151.0,0.00015997,2]
[408700272,1774144242209,-1313.58911789,0.00015999,5]
[408700273,1774144242219,-150.0,0.00015999,2]
[408700274,1774144242229,-243.90903211,0.00015999,2]
[408700275,1774144242238,-542.59926836,0.00015999,2]
[408700276,1774144242248,-150.0,0.00015999,2]
[408700277,1774144242258,-227.96912103,0.00015999,2]
[408700278,1774144242268,-150.0,0.00015999,2]
[408700279,1774144242278,-150.0,0.00015999,2]
[408700280,1774144242288,-150.0,0.00015999,2]
[408700281,1774144242298,-2866.0,0.00016,5]
[408700282,1774144242309,-383127.06890122,0.00016,2]
[408700283,1774144242504,-366.34750218,0.00015831,2]
[408700284,1774144242513,-19633.40750679,0.00016,2]
[408700308,1774144245855,-500.0,0.0001504,2]
[408700309,1774144245865,-160.0,0.00015179,2]
[408700310,1774144245874,-161.35493247,0.000158,2]
[408700311,1774144245883,-366.34750217,0.00015866,2]
[408700312,1774144245893,-2000.0,0.000159,2]
[408700313,1774144245903,-108651.78756586,0.00016,2]
[408700326,1774144657862,1337.0,0.00017,60]
[408700327,1774144861017,166.66,0.0001221,2]
[408700328,1774144861218,166.66,0.00012467,2]
[408700329,1774144873246,-166.66,0.00012724,2]
[408700330,1774145051844,517.957864,0.00012688,2]
[408700331,1774145228100,-200.0,0.00012753,2]
[408700332,1774145228121,-250.0,0.00012764,2]
[408700333,1774145228140,-259.21928038,0.00012775,2]
[408700334,1774145228161,-1422.88391246,0.00012797,2]
[408700339,1774145432068,-255.0,0.00012797,2]
[408700340,1774145432081,-252.735546,0.00012817,2]
[408700341,1774145432094,-1200.0,0.0001296,2]
[408700342,1774145432105,-369.9882,0.00012961,2]
[408700343,1774145432117,-500.0,0.00012961,2]
[408700344,1774145432128,-500.0,0.00012961,2]
[408700345,1774145432143,-500.0,0.00012961,2]
[408700346,1774145432155,-237.89499895,0.00012961,2]
[408700347,1774145432177,-262.10500105,0.00012961,2]
[408700348,1774145432189,-500.0,0.00012961,2]
[408700349,1774145432200,-500.0,0.00012961,2]
[408700350,1774145432211,-500.0,0.00012961,2]
[408700351,1774145432222,-500.0,0.00012961,2]
[408700352,1774145432234,-213.95520739,0.00012961,2]
[408700353,1774145432245,-166.66,0.00012982,2]
[408700354,1774145432256,-150.0,0.00013209,2]
[408700355,1774145432267,-2500.0,0.0001321,2]
[408700356,1774145432277,-1480.17167602,0.0001321,2]
[408700357,1774145432289,-358.18864893,0.0001321,2]
[408700358,1774145432300,-166.66,0.00013239,2]
[408700359,1774145432311,-646.53086032,0.00013309,2]
[408700360,1774145432321,-646.53086032,0.00013309,2]
[408700361,1774145432336,-646.53086032,0.00013309,2]
[408700362,1774145432347,-646.53086032,0.00013309,2]
[408700363,1774145432358,-646.53086032,0.00013309,2]
[408700364,1774145432370,-646.53086032,0.00013309,2]
[408700365,1774145432382,-646.53086032,0.00013309,2]
[408700366,1774145432392,-646.53086032,0.00013309,2]
[408700367,1774145432403,-646.53086032,0.00013309,2]
[408700368,1774145432414,-646.53086032,0.00013309,2]
[408700369,1774145432425,-646.53086032,0.00013309,2]
[408700370,1774145432436,-646.53086032,0.00013309,2]
[408700371,1774145432447,-646.53086032,0.00013309,2]
[408700372,1774145432458,-646.53086032,0.00013309,2]
[408700373,1774145432469,-646.53086032,0.00013309,2]
[408700374,1774145432479,-646.53086032,0.00013309,2]
[408700375,1774145432490,-646.53086032,0.00013309,2]
[408700376,1774145432500,-646.53086032,0.00013309,2]
[408700377,1774145432511,-646.53086032,0.00013309,2]
[408700378,1774145432526,-646.53086032,0.00013309,2]
[408700379,1774145432538,-646.53086032,0.00013309,2]
[408700380,1774145432549,-646.53086032,0.00013309,2]
[408700381,1774145432560,-646.53086032,0.00013309,2]
[408700382,1774145432571,-646.53086032,0.00013309,2]
[408700383,1774145432582,-646.53086032,0.00013309,2]
[408700384,1774145432593,-646.53086032,0.00013309,2]
[408700385,1774145432603,-646.53086032,0.00013309,2]
[408700386,1774145432615,-646.53086032,0.00013309,2]
[408700387,1774145432625,-646.53086032,0.00013309,2]
[408700388,1774145432636,-646.53086032,0.00013309,2]
[408700389,1774145432647,-646.53086032,0.00013309,2]
[408700390,1774145432658,-646.53086032,0.00013309,2]
[408700391,1774145432670,-646.53086032,0.00013309,2]
[408700392,1774145432681,-646.53086032,0.00013309,2]
[408700393,1774145432693,-646.53086032,0.00013309,2]
[408700394,1774145432704,-646.53086032,0.00013309,2]
[408700395,1774145432717,-646.53086032,0.00013309,2]
[408700396,1774145432728,-646.53086032,0.00013309,2]
[408700397,1774145432740,-646.53086032,0.00013309,2]
[408700398,1774145432751,-646.53086032,0.00013309,2]
[408700399,1774145432761,-646.53086032,0.00013309,2]
[408700400,1774145432772,-646.53086032,0.00013309,2]
[408700401,1774145432782,-646.53086032,0.00013309,2]
[408700402,1774145432793,-646.53086032,0.00013309,2]
[408700403,1774145432804,-646.53086032,0.00013309,2]
[408700404,1774145432815,-646.53086032,0.00013309,2]
[408700405,1774145432826,-646.53086032,0.00013309,2]
[408700406,1774145432836,-646.53086032,0.00013309,2]
[408700407,1774145432848,-646.53086032,0.00013309,2]
[408700408,1774145432859,-646.53086032,0.00013309,2]
[408700409,1774145432870,-646.53086032,0.00013309,2]
[408700410,1774145432881,-646.53086032,0.00013309,2]
[408700411,1774145432892,-646.53086032,0.00013309,2]
[408700412,1774145432902,-630.3675888,0.00013309,2]
[408700413,1774145432914,-630.3675888,0.00013309,2]
[408700414,1774145432926,-630.3675888,0.00013309,2]
[408700415,1774145432937,-630.3675888,0.00013309,2]
[408700416,1774145432953,-630.3675888,0.00013309,2]
[408700417,1774145432964,-630.3675888,0.00013309,2]
[408700418,1774145432976,-630.3675888,0.00013309,2]
[408700419,1774145432988,-630.3675888,0.00013309,2]
[408700420,1774145432999,-630.3675888,0.00013309,2]
[408700421,1774145433010,-630.3675888,0.00013309,2]
[408700422,1774145433023,-630.3675888,0.00013309,2]
[408700423,1774145433034,-630.3675888,0.00013309,2]
[408700424,1774145433045,-630.3675888,0.00013309,2]
[408700425,1774145433054,-630.3675888,0.00013309,2]
[408700426,1774145433278,-630.3675888,0.00013309,2]
[408700427,1774145433297,-630.3675888,0.00013309,2]
[408700428,1774145433307,-630.3675888,0.00013309,2]
[408700429,1774145433316,-630.3675888,0.00013309,2]
[408700430,1774145433325,-630.3675888,0.00013309,2]
[408700431,1774145433334,-630.3675888,0.00013309,2]
[408700432,1774145433344,-630.3675888,0.00013309,2]
[408700433,1774145433353,-630.3675888,0.00013309,2]
[408700434,1774145433362,-630.3675888,0.00013309,2]
[408700435,1774145433371,-630.3675888,0.00013309,2]
[408700436,1774145433381,-630.3675888,0.00013309,2]
[408700437,1774145433390,-630.3675888,0.00013309,2]
[408700438,1774145433399,-630.3675888,0.00013309,2]
[408700439,1774145433409,-630.3675888,0.00013309,2]
[408700440,1774145433418,-630.3675888,0.00013309,2]
[408700441,1774145433427,-630.3675888,0.00013309,2]
[408700442,1774145433436,-630.3675888,0.00013309,2]
[408700443,1774145433446,-630.3675888,0.00013309,2]
[408700444,1774145433455,-630.3675888,0.00013309,2]
[408700445,1774145433464,-630.3675888,0.00013309,2]
[408700446,1774145433473,-630.3675888,0.00013309,2]
[408700447,1774145433482,-630.36758879,0.00013309,2]
[408700448,1774145433491,-425953.9548,0.0001331,2]
[408700449,1774145433501,-150.99,0.0001331,2]
[408700450,1774145433511,-150.99,0.0001331,2]
[408700451,1774145433520,-9999.99,0.0001331,2]
[408700452,1774145433530,-353.25,0.0001331,2]
[408700453,1774145433539,-999.99,0.0001331,2]
[408700454,1774145433549,-9999.99,0.00013311,2]
[408700455,1774145433558,-6785.67,0.00013311,2]
[408700456,1774145433568,-4528.0372,0.0001337,2]
[408700457,1774145433577,-500.0,0.00013373,2]
[408700458,1774145433586,-502.24763857,0.00013373,2]
[408700459,1774145433596,-501.94992362,0.00013373,2]
[408700460,1774145433605,-503.65069447,0.00013373,2]
[408700461,1774145433615,-500.22141638,0.00013373,2]
[408700462,1774145433624,-500.0,0.00013373,2]
[408700463,1774145433633,-501.45694581,0.00013373,2]
[408700464,1774145433643,-500.0,0.00013373,2]
[408700465,1774145433653,-314.25079956,0.00013373,2]
[408700466,1774145433662,-209.65985904,0.00013403,2]
[408700467,1774145433672,-153.53212712,0.00013403,2]
[408700468,1774145433682,-326.55256121,0.0001341,2]
[408700469,1774145433691,-500.0,0.0001341,2]
[408700470,1774145433702,-500.0,0.0001341,2]
[408700471,1774145433712,-500.0,0.0001341,2]
[408700472,1774145433721,-562.57545005,0.0001341,2]
[408700473,1774145433730,-500.0,0.0001341,2]
[408700474,1774145433739,-372.13889885,0.0001341,2]
[408700475,1774145433749,-500.0,0.0001341,2]
[408700476,1774145433758,-500.0,0.0001341,2]
[408700477,1774145433767,-500.0,0.0001341,2]
[408700478,1774145433777,-500.0,0.0001341,2]
[408700479,1774145433787,-150.0,0.0001341,2]
[408700480,1774145433797,-150.0,0.0001341,2]
[408700481,1774145433806,-150.0,0.0001341,2]
[408700482,1774145433815,-150.0,0.0001341,2]
[408700483,1774145433824,-150.0,0.0001341,2]
[408700484,1774145433833,-150.0,0.0001341,2]
[408700485,1774145433843,-150.0,0.0001341,2]
[408700486,1774145433853,-150.0,0.0001341,2]
[408700487,1774145433871,-150.0,0.0001341,2]
[408700488,1774145433881,-150.0,0.0001341,2]
[408700489,1774145433891,-89955.11921785,0.0001347,2]
[408700490,1774145433901,-379.18468401,0.00013473,2]
[408700491,1774145433911,-500.0,0.00013473,2]
[408700492,1774145433920,-500.0,0.00013473,2]
[408700493,1774145433930,-166.66,0.00013496,2]
[408700494,1774145433940,-253.0,0.00013504,2]
[408700495,1774145433953,-1480.17167593,0.00013509,2]
[408700496,1774145433963,-332.80340637,0.0001354,2]
[408700497,1774145433972,-516.55182021,0.00013698,2]
[408700498,1774145433981,-512.08786411,0.00013698,2]
[408700499,1774145433991,-517.2817596,0.00013698,2]
[408700500,1774145434000,-509.26929884,0.00013698,2]
[408700501,1774145434010,-354.71,0.00013699,2]
[408700502,1774145434020,-167.27777233,0.00013699,2]
[408700503,1774145434029,-500.0,0.00013753,2]
[408700504,1774145434043,-1480.17167593,0.00013808,2]
[408700505,1774145434061,-618.0,0.00013981,2]
[408700506,1774145434070,-524.0,0.00014,2]
[408700507,1774145434079,-1001.94488973,0.00014021,2]
[408700508,1774145434088,-1001.22815453,0.00014021,2]
[408700509,1774145434097,-300.0,0.00014028,2]
[408700510,1774145434106,-250.0,0.00014028,2]
[408700511,1774145434115,-5000.0,0.00014028,2]
[408700512,1774145434125,-896.0,0.00014039,2]
[408700513,1774145434135,-250.0,0.00014053,2]
[408700514,1774145434145,-195.0,0.00014077,2]
[408700515,1774145434154,-195.0,0.00014077,2]
[408700516,1774145434163,-195.0,0.00014077,2]
[408700517,1774145434172,-250.0,0.00014077,2]
[408700518,1774145434181,-300.0,0.00014077,2]
[408700519,1774145434192,-302.87275784,0.00014077,2]
[408700520,1774145434201,-1667.57822647,0.00014082,2]
[408700521,1774145434210,-1600.0,0.00014089,2]
[408700522,1774145434219,-1649.03,0.00014098,2]
[408700523,1774145434229,-1195.5,0.000141,2]
[408700524,1774145434239,-1480.17167593,0.00014107,2]
[408700525,1774145434248,-415.0,0.00014158,2]
[408700526,1774145434258,-363.06,0.00014183,2]
[408700527,1774145434268,-1284.37,0.00014205,2]
[408700528,1774145434280,-8579.42,0.00014205,2]
[408700529,1774145434290,-1680.0,0.00014256,2]
[408700530,1774145434299,-171.82,0.00014261,2]
[408700531,1774145434309,-4009.82897751,0.00014262,2]
[408700532,1774145434319,-500.0,0.00014274,2]
[408700533,1774145434328,-255.0,0.00014319,2]
[408700534,1774145434338,-186.636452,0.00014349,2]
[408700535,1774145434347,-388.09892641,0.00014378,2]
[408700536,1774145434357,-1886.19,0.00014383,2]
[408700537,1774145434367,-1480.17167593,0.00014406,2]
[408700538,1774145434378,-901.47058757,0.00014463,2]
[408700539,1774145434388,-500.63722165,0.0001448,2]
[408700540,1774145434399,-500.6391206,0.0001448,2]
[408700541,1774145434410,-501.26166686,0.0001448,2]
[408700542,1774145434419,-500.65903266,0.0001448,2]
[408700543,1774145434430,-500.0,0.00014548,2]
[408700544,1774145434439,-1012.77724963,0.00014566,2]
[408700545,1774145434448,-154.4686056,0.00014575,2]
[408700546,1774145434458,-500.0,0.00014575,2]
[408700547,1774145434467,-500.70382414,0.00014617,2]
[408700548,1774145434476,-500.74920901,0.00014617,2]
[408700549,1774145434486,-500.43058459,0.00014617,2]
[408700550,1774145434495,-500.0,0.00014617,2]
[408700551,1774145434505,-500.4848322,0.00014617,2]
[408700552,1774145434514,-500.0,0.00014617,2]
[408700553,1774145434523,-500.73530343,0.00014625,2]
[408700554,1774145434532,-500.40641645,0.00014625,2]
[408700555,1774145434542,-500.0,0.00014625,2]
[408700556,1774145434552,-188.41739919,0.00014625,2]
[408700557,1774145434562,-500.0,0.00014625,2]
[408700558,1774145434571,-500.71304925,0.00014625,2]
[408700559,1774145434581,-500.0,0.00014625,2]
[408700560,1774145434591,-500.72748005,0.00014625,2]
[408700561,1774145434600,-273.65039375,0.00014641,2]
[408700562,1774145434610,-1480.17167593,0.00014704,2]
[408700563,1774145434619,-161.0,0.0001472,2]
[408700564,1774145434629,-161.0,0.0001472,2]
[408700565,1774145434638,-500.0,0.00014828,2]
[408700566,1774145434648,-500.0,0.00014828,2]
[408700567,1774145434658,-500.0,0.00014828,2]
[408700568,1774145434667,-500.0,0.00014828,2]
[408700569,1774145434677,-250.0,0.00014828,2]
[408700570,1774145434686,-250.0,0.00014828,2]
[408700571,1774145434696,-250.0,0.00014828,2]
[408700572,1774145434705,-500.0,0.00014828,2]
[408700573,1774145434715,-250.0,0.00014828,2]
[408700574,1774145434724,-250.0,0.00014828,2]
[408700575,1774145434734,-500.0,0.00014828,2]
[408700576,1774145434743,-286.84629583,0.00014828,2]
[408700577,1774145434753,-250.0,0.00014828,2]
[408700578,1774145434763,-500.0,0.00014828,2]
[408700579,1774145434773,-250.0,0.00014828,2]
[408700580,1774145434782,-250.0,0.00014828,2]
[408700581,1774145434792,-250.0,0.00014828,2]
[408700582,1774145434802,-500.0,0.00014828,2]
[408700583,1774145434812,-250.0,0.00014828,2]
[408700584,1774145434821,-500.0,0.00014828,2]
[408700585,1774145434830,-500.0,0.00014828,2]
[408700586,1774145434840,-500.0,0.00014828,2]
[408700587,1774145434849,-250.0,0.00015,2]
[408700588,1774145434859,-1480.17167593,0.00015003,2]
[408700589,1774145434868,-451.325505,0.00015031,7]
[408700590,1774145434878,-234.281665,0.00015031,7]
[408700591,1774145434888,-215.0,0.00015041,2]
[408700592,1774145434897,-826.0,0.00015094,2]
[408700593,1774145434907,-160.0,0.00015149,2]
[408700594,1774145434917,-979.16666667,0.00015149,2]
[408700595,1774145434927,-1000.0,0.00015165,2]
[408700596,1774145434936,-1000.0,0.00015165,2]
[408700597,1774145434951,-1000.0,0.00015173,2]
[408700598,1774145434961,-1000.0,0.00015173,2]
[408700599,1774145434972,-1000.0,0.00015173,2]
[408700600,1774145434982,-2167.0,0.00015173,2]
[408700601,1774145434993,-10000.0,0.00015205,2]
[408700602,1774145435004,-1480.17167593,0.00015302,2]
[408700603,1774145435013,-168.0,0.00015366,2]
[408700604,1774145435026,-168.0,0.00015366,2]
[408700605,1774145435035,-168.0,0.0001544,2]
[408700606,1774145435045,-168.0,0.00015481,2]
[408700607,1774145435055,-826.0,0.00015501,2]
[408700608,1774145435065,-4000.0,0.00015507,2]
[408700609,1774145435074,-433.0,0.00015521,2]
[408700610,1774145435084,-1480.17167593,0.00015601,2]
[408700611,1774145435094,-3919.67294797,0.00015619,2]
[408700612,1774145435103,-168.0,0.00015623,2]
[408700613,1774145435113,-1261.0,0.00015647,2]
[408700614,1774145435122,-150.162,0.00015647,2]
[408700615,1774145435131,-350.0,0.00015668,2]
[408700616,1774145435141,-926.964,0.00015672,2]
[408700617,1774145435151,-1215.0,0.00015672,2]
[408700618,1774145435160,-2466.0,0.0001568,2]
[408700619,1774145435169,-2329.3298542,0.0001568,2]
[408700620,1774145435183,-1910.07737679,0.0001568,2]
[408700622,1774145438342,-175.99725708,0.0001321,2]
[408700623,1774145438351,-1768.59276901,0.0001568,2]
[408700624,1774145438361,-2351.0,0.00015682,2]
[408700625,1774145438371,-1158.78645597,0.00015713,2]
[408700626,1774145438380,-1500.0,0.00015713,2]
[408700627,1774145438390,-161.0,0.00015715,2]
[408700628,1774145438400,-168.0,0.00015717,2]
[408700629,1774145438409,-1002.54227332,0.00015721,2]
[408700630,1774145438421,-1500.0,0.00015721,2]
[408700631,1774145438430,-1500.0,0.00015721,2]
[408700632,1774145438440,-1000.0,0.00015731,2]
[408700633,1774145438450,-183.17375109,0.0001574,2]
[408700634,1774145438460,-350.0,0.00015745,2]
[408700635,1774145438470,-244.501002,0.00015749,2]
[408700636,1774145438479,-3836.17,0.00015804,2]
[408700637,1774145438489,-174.788,0.00015804,2]
[408700638,1774145438499,-160.36774061,0.00015812,2]
[408700639,1774145438508,-1000.0,0.00015836,2]
[408700640,1774145438517,-350.0,0.00015836,2]
[408700641,1774145438527,-52077.30317571,0.0001584,2]
[408700642,1774145438536,-159.94774,0.0001584,2]
[408700643,1774145438546,-159.94773,0.0001584,2]
[408700645,1774145438556,-1600.0,0.0001585,2]
[408700647,1774145438565,-500.0,0.00015872,2]
[408700648,1774145438574,-5000.0,0.00015873,2]
[408700650,1774145438583,-2000.0,0.0001589,2]
[408700652,1774145438593,-4000.0,0.00015895,2]
[408700654,1774145438602,-151.0,0.00015897,2]
[408700656,1774145438612,-1000.0,0.00015898,2]
[408700658,1774145438622,-4899.8829,0.000159,2]
[408700660,1774145438631,-876.16758379,0.000159,2]
[408700662,1774145438641,-1154.52152287,0.000159,2]
[408700714,1774145440290,-175.99725706,0.00013883,2]
[408700715,1774145440300,-154.4686056,0.00014575,2]
[408700716,1774145440310,-2997.0,0.000159,2]
[408700717,1774145440319,-1480.17167593,0.000159,2]
[408700718,1774145440329,-183.17375108,0.000159,2]
[408700719,1774145440338,-956.18235408,0.000159,2]
[408700720,1774145440347,-28440.35257301,0.000159,2]
[408700721,1774145440356,-441.23266206,0.000159,2]
[408700722,1774145440365,-1072.67813318,0.000159,2]
[408700723,1774145440375,-1000.0,0.00015919,2]
[408700724,1774145440384,-168.0,0.00015928,2]
[408700725,1774145440394,-1033.64387573,0.00015934,2]
[408700726,1774145440403,-2293.0,0.0001594,5]
[408700727,1774145440412,-1000.0,0.00015953,2]
[408700728,1774145440422,-150.0,0.0001597,2]
[408700729,1774145440432,-173.0,0.00015973,2]
[408700730,1774145440441,-500.0,0.00015973,2]
[408700731,1774145440450,-399.90719368,0.00015973,2]
[408700732,1774145440459,-500.0,0.00015973,2]
[408700733,1774145440468,-500.0,0.00015973,2]
[408700734,1774145440477,-226.84837346,0.00015973,2]
[408700735,1774145440486,-500.0,0.00015973,2]
[408700736,1774145440496,-500.0,0.00015973,2]
[408700737,1774145440505,-500.62430997,0.00015973,2]
[408700738,1774145440514,-500.0,0.00015973,2]